[Event "*** Titled Tuesday Blitz"]
[Site "Chess.com"]
[Date "2020.11.10"]
[Round "7"]
[White "Mr_Sinigami"]
[Black "MarcoRiehle"]
[Result "0-1"]
[WhiteElo "2528"]
[BlackElo "2675"]
[TimeControl "180+1"]
[EndTime "11:23:41 PST"]
[Termination "MarcoRiehle won on time"]

1. d4 {[%clk 0:03:00.9]} 1... d5 {[%clk 0:02:59]} 2. Nf3 {[%clk 0:03:01.2]} 2...
e6 {[%clk 0:02:58.8]} 3. Bf4 {[%clk 0:03:01.4]} 3... Bd6 {[%clk 0:02:58.4]} 4.
Bg3 {[%clk 0:02:57.5]} 4... c5 {[%clk 0:02:57.6]} 5. e3 {[%clk 0:02:57.3]} 5...
Nf6 {[%clk 0:02:56.7]} 6. Nbd2 {[%clk 0:02:56.6]} 6... O-O {[%clk 0:02:56.7]} 7.
c3 {[%clk 0:02:56.6]} 7... Nc6 {[%clk 0:02:53.5]} 8. Bb5 {[%clk 0:02:55.8]} 8...
a6 {[%clk 0:02:52.1]} 9. Bxc6 {[%clk 0:02:55.6]} 9... bxc6 {[%clk 0:02:53]} 10.
Qa4 {[%clk 0:02:55.9]} 10... cxd4 {[%clk 0:02:46.4]} 11. exd4 {[%clk 0:02:53.9]}
11... c5 {[%clk 0:02:44.3]} 12. Bxd6 {[%clk 0:02:45.3]} 12... Qxd6 {[%clk
0:02:43.7]} 13. Qa3 {[%clk 0:02:45.8]} 13... Nd7 {[%clk 0:02:42.2]} 14. Nb3
{[%clk 0:02:42.2]} 14... Rb8 {[%clk 0:02:40.8]} 15. Nxc5 {[%clk 0:02:38.1]}
15... Nxc5 {[%clk 0:02:29.3]} 16. dxc5 {[%clk 0:02:37.6]} 16... Qf4 {[%clk
0:02:19.4]} 17. O-O {[%clk 0:02:35.7]} 17... e5 {[%clk 0:02:19.5]} 18. Rfe1
{[%clk 0:02:32.4]} 18... f6 {[%clk 0:02:13.6]} 19. b4 {[%clk 0:02:14.1]} 19...
Bg4 {[%clk 0:02:12.1]} 20. Qc1 {[%clk 0:02:13.3]} 20... Qc4 {[%clk 0:02:02.8]}
21. Nd2 {[%clk 0:02:10.6]} 21... Qb5 {[%clk 0:01:54.3]} 22. a3 {[%clk 0:02:01]}
22... a5 {[%clk 0:01:51.6]} 23. Nb3 {[%clk 0:01:15.5]} 23... a4 {[%clk
0:01:46.8]} 24. Nd2 {[%clk 0:01:14.2]} 24... Be6 {[%clk 0:01:41.4]} 25. Qc2
{[%clk 0:01:13.8]} 25... Rfd8 {[%clk 0:01:37.5]} 26. Rac1 {[%clk 0:01:11]} 26...
Qc6 {[%clk 0:01:05.9]} 27. h3 {[%clk 0:01:08.5]} 27... g6 {[%clk 0:01:02.3]} 28.
Nf1 {[%clk 0:00:57.8]} 28... d4 {[%clk 0:00:58.9]} 29. cxd4 {[%clk 0:00:54.1]}
29... Rxd4 {[%clk 0:00:59.8]} 30. Ne3 {[%clk 0:00:53.3]} 30... Rbd8 {[%clk
0:00:54.1]} 31. Qe2 {[%clk 0:00:47.1]} 31... Rd3 {[%clk 0:00:45.7]} 32. Ra1
{[%clk 0:00:43.2]} 32... e4 {[%clk 0:00:31.4]} 33. Rec1 {[%clk 0:00:34.4]} 33...
f5 {[%clk 0:00:29.5]} 34. Nc4 {[%clk 0:00:33.2]} 34... Bxc4 {[%clk 0:00:19.4]}
35. Rxc4 {[%clk 0:00:32.5]} 35... Kg7 {[%clk 0:00:19.7]} 36. Qb2+ {[%clk
0:00:30]} 36... Kh6 {[%clk 0:00:17.3]} 37. Qe5 {[%clk 0:00:29.1]} 37... R3d5
{[%clk 0:00:12.8]} 38. Qf4+ {[%clk 0:00:23.7]} 38... g5 {[%clk 0:00:13.4]} 39.
Qg3 {[%clk 0:00:19.7]} 39... Kg6 {[%clk 0:00:12.7]} 40. h4 {[%clk 0:00:19.1]}
40... h6 {[%clk 0:00:12.6]} 41. Rcc1 {[%clk 0:00:17.9]} 41... f4 {[%clk
0:00:12.4]} 42. Qg4 {[%clk 0:00:16.8]} 42... h5 {[%clk 0:00:09.4]} 43. Qe2
{[%clk 0:00:16.6]} 43... Rd2 {[%clk 0:00:08]} 44. Qc4 {[%clk 0:00:16.3]} 44...
e3 {[%clk 0:00:07.8]} 45. f3 {[%clk 0:00:11.4]} 45... g4 {[%clk 0:00:07.2]} 46.
b5 {[%clk 0:00:10.2]} 46... Rxg2+ {[%clk 0:00:06.7]} 47. Kh1 {[%clk 0:00:06.4]}
47... Rg1+ {[%clk 0:00:02.2]} 48. Kxg1 {[%clk 0:00:05.9]} 48... Qxf3 {[%clk
0:00:02.7]} 49. Qe6+ {[%clk 0:00:05.9]} 49... Kg7 {[%clk 0:00:03.3]} 50. Qe7+
{[%clk 0:00:05.6]} 50... Kg6 {[%clk 0:00:03.8]} 51. Qg5+ {[%clk 0:00:05.3]}
51... Kf7 {[%clk 0:00:04.2]} 52. Qxh5+ {[%clk 0:00:05.2]} 52... Ke6 {[%clk
0:00:04.8]} 53. Qg6+ {[%clk 0:00:05.1]} 53... Ke5 {[%clk 0:00:05.4]} 54. Qg5+
{[%clk 0:00:04.7]} 54... Ke6 {[%clk 0:00:05.8]} 55. Qg6+ {[%clk 0:00:04.4]}
55... Ke5 {[%clk 0:00:05.9]} 56. Rc2 {[%clk 0:00:03.8]} 56... Qg3+ {[%clk
0:00:05.3]} 57. Rg2 {[%clk 0:00:02.4]} 57... Qxg2+ {[%clk 0:00:02.6]} 58. Kxg2
{[%clk 0:00:02.2]} 58... Rd2+ {[%clk 0:00:03.3]} 59. Kg1 {[%clk 0:00:02.5]}
59... g3 {[%clk 0:00:04.2]} 60. Qg5+ {[%clk 0:00:02.2]} 60... Ke4 {[%clk
0:00:04.4]} 61. Rf1 {[%clk 0:00:01.8]} 61... e2 {[%clk 0:00:04]} 62. Qxf4+
{[%clk 0:00:01.6]} 62... Kd3 {[%clk 0:00:04.6]} 63. Rf3+ {[%clk 0:00:01.8]}
63... Kc2 {[%clk 0:00:04.7]} 64. Qf5+ {[%clk 0:00:01.4]} 64... Kd1 {[%clk
0:00:05]} 65. Rf1+ {[%clk 0:00:01.2]} 65... e1=Q {[%clk 0:00:05]} 0-1

[Event "*** Titled Tuesday Blitz"]
[Site "Chess.com"]
[Date "2020.11.10"]
[Round "7"]
[White "124chess"]
[Black "petrkostenko"]
[Result "1-0"]
[WhiteElo "2715"]
[BlackElo "2458"]
[TimeControl "180+1"]
[EndTime "11:23:41 PST"]
[Termination "124chess won on time"]

1. d4 {[%clk 0:03:00.9]} 1... e6 {[%clk 0:02:52.5]} 2. Nf3 {[%clk 0:02:58.9]}
2... Nf6 {[%clk 0:02:51.6]} 3. Bf4 {[%clk 0:02:59.2]} 3... b6 {[%clk 0:02:50.6]}
4. e3 {[%clk 0:02:59.6]} 4... Bb7 {[%clk 0:02:50.8]} 5. Nbd2 {[%clk 0:03:00.1]}
5... Be7 {[%clk 0:02:49.7]} 6. Bd3 {[%clk 0:02:59.5]} 6... Nh5 {[%clk
0:02:48.3]} 7. Bg3 {[%clk 0:02:59.3]} 7... d6 {[%clk 0:02:47.3]} 8. Qe2 {[%clk
0:02:58.3]} 8... Nd7 {[%clk 0:02:46.7]} 9. O-O-O {[%clk 0:02:52.6]} 9... a6
{[%clk 0:02:45.8]} 10. Kb1 {[%clk 0:02:51.8]} 10... g6 {[%clk 0:02:44.3]} 11. e4
{[%clk 0:02:48.5]} 11... O-O {[%clk 0:02:37.8]} 12. h4 {[%clk 0:02:37.1]} 12...
Nxg3 {[%clk 0:02:34.1]} 13. fxg3 {[%clk 0:02:38]} 13... c5 {[%clk 0:02:31.6]}
14. c3 {[%clk 0:02:35.7]} 14... Nf6 {[%clk 0:02:12.8]} 15. e5 {[%clk 0:02:22.6]}
15... Nh5 {[%clk 0:02:12.2]} 16. Nf1 {[%clk 0:02:06.3]} 16... Qc7 {[%clk
0:02:03.3]} 17. Be4 {[%clk 0:01:56.7]} 17... cxd4 {[%clk 0:01:47.6]} 18. Bxb7
{[%clk 0:01:53.8]} 18... Qxb7 {[%clk 0:01:46.8]} 19. Rxd4 {[%clk 0:01:33.7]}
19... dxe5 {[%clk 0:01:44.2]} 20. Nxe5 {[%clk 0:01:34.6]} 20... Rfd8 {[%clk
0:01:43.8]} 21. g4 {[%clk 0:01:29]} 21... Rxd4 {[%clk 0:01:42.4]} 22. cxd4
{[%clk 0:01:29]} 22... Nf6 {[%clk 0:01:43]} 23. Ng3 {[%clk 0:01:23.2]} 23... Nd5
{[%clk 0:01:39.6]} 24. Qf3 {[%clk 0:01:20.9]} 24... f6 {[%clk 0:01:37.6]} 25.
Nd3 {[%clk 0:01:18.3]} 25... Rc8 {[%clk 0:01:36]} 26. h5 {[%clk 0:01:17.3]}
26... g5 {[%clk 0:01:35.3]} 27. Re1 {[%clk 0:01:12.4]} 27... Qc6 {[%clk
0:01:32.6]} 28. Rc1 {[%clk 0:01:09.2]} 28... Qd7 {[%clk 0:01:32.5]} 29. Rxc8+
{[%clk 0:01:05.4]} 29... Qxc8 {[%clk 0:01:32.4]} 30. Qe4 {[%clk 0:01:06]} 30...
a5 {[%clk 0:01:12.6]} 31. Nf5 {[%clk 0:01:04]} 31... Bf8 {[%clk 0:01:03.3]} 32.
Ne3 {[%clk 0:01:01.5]} 32... Nxe3 {[%clk 0:01:03.3]} 33. Qxe3 {[%clk 0:01:02.4]}
33... Qc4 {[%clk 0:01:02.4]} 34. Qe4 {[%clk 0:00:34.8]} 34... a4 {[%clk
0:00:55.2]} 35. a3 {[%clk 0:00:26.2]} 35... Qb3 {[%clk 0:00:52.5]} 36. Nc1
{[%clk 0:00:22.1]} 36... Qc4 {[%clk 0:00:51.8]} 37. Ne2 {[%clk 0:00:22.2]} 37...
b5 {[%clk 0:00:50.4]} 38. Nc3 {[%clk 0:00:19.6]} 38... Bxa3 {[%clk 0:00:44.8]}
39. Qa8+ {[%clk 0:00:12.3]} 39... Bf8 {[%clk 0:00:42.8]} 40. Ne4 {[%clk
0:00:12.1]} 40... Qxd4 {[%clk 0:00:40.5]} 41. Qc6 {[%clk 0:00:09.6]} 41... Qe5
{[%clk 0:00:40.1]} 42. Kc2 {[%clk 0:00:08.4]} 42... b4 {[%clk 0:00:37.9]} 43.
Kd3 {[%clk 0:00:08]} 43... a3 {[%clk 0:00:37.5]} 44. bxa3 {[%clk 0:00:08.9]}
44... bxa3 {[%clk 0:00:37.3]} 45. Qa8 {[%clk 0:00:09.5]} 45... Qd5+ {[%clk
0:00:34.3]} 46. Qxd5 {[%clk 0:00:09.2]} 46... exd5 {[%clk 0:00:34.4]} 47. Nc3
{[%clk 0:00:10.1]} 47... Bb4 {[%clk 0:00:30.1]} 48. Na2 {[%clk 0:00:08.5]} 48...
Ba5 {[%clk 0:00:29.7]} 49. Kd4 {[%clk 0:00:07.9]} 49... Kf7 {[%clk 0:00:30.5]}
50. Kxd5 {[%clk 0:00:08.3]} 50... Bd2 {[%clk 0:00:28.5]} 51. Kd4 {[%clk
0:00:07.6]} 51... Ke6 {[%clk 0:00:27.7]} 52. Kd3 {[%clk 0:00:08]} 52... Ba5
{[%clk 0:00:26.4]} 53. Nc1 {[%clk 0:00:06.7]} 53... f5 {[%clk 0:00:25.6]} 54.
Nb3 {[%clk 0:00:06.2]} 54... a2 {[%clk 0:00:24.7]} 55. Kc2 {[%clk 0:00:05.5]}
55... fxg4 {[%clk 0:00:23.1]} 56. Kb2 {[%clk 0:00:05.4]} 56... Bb6 {[%clk
0:00:22]} 57. Kxa2 {[%clk 0:00:05.5]} 57... Kf5 {[%clk 0:00:22.4]} 58. Kb2
{[%clk 0:00:05]} 58... g3 {[%clk 0:00:22.4]} 59. Nd2 {[%clk 0:00:05.2]} 59...
Kg4 {[%clk 0:00:21.3]} 60. Kc2 {[%clk 0:00:05.5]} 60... Kxh5 {[%clk 0:00:20.1]}
61. Kd3 {[%clk 0:00:06]} 61... Kg4 {[%clk 0:00:20]} 62. Ke4 {[%clk 0:00:06.1]}
62... h5 {[%clk 0:00:19.6]} 63. Nc4 {[%clk 0:00:06.4]} 63... Bf2 {[%clk
0:00:08.8]} 64. Ne5+ {[%clk 0:00:05.5]} 64... Kh4 {[%clk 0:00:08.7]} 65. Kf5
{[%clk 0:00:04.2]} 1-0

[Event "*** Titled Tuesday Blitz"]
[Site "Chess.com"]
[Date "2020.11.10"]
[Round "7"]
[White "capatl"]
[Black "Bastiandash"]
[Result "1-0"]
[WhiteElo "2506"]
[BlackElo "2362"]
[TimeControl "180+1"]
[EndTime "11:23:42 PST"]
[Termination "capatl won on time"]

1. c4 {[%clk 0:02:58.7]} 1... Nf6 {[%clk 0:02:59.6]} 2. Nc3 {[%clk 0:02:57]}
2... e6 {[%clk 0:02:57.6]} 3. d4 {[%clk 0:02:55.1]} 3... Bb4 {[%clk 0:02:56.6]}
4. Nf3 {[%clk 0:02:48.1]} 4... b6 {[%clk 0:02:55.9]} 5. e3 {[%clk 0:02:46.7]}
5... Bb7 {[%clk 0:02:53.4]} 6. Be2 {[%clk 0:02:46.1]} 6... O-O {[%clk
0:02:51.5]} 7. O-O {[%clk 0:02:45.8]} 7... Bxc3 {[%clk 0:02:49.5]} 8. bxc3
{[%clk 0:02:44.9]} 8... Ne4 {[%clk 0:02:50.4]} 9. Qc2 {[%clk 0:02:44]} 9... d6
{[%clk 0:02:44.5]} 10. Nd2 {[%clk 0:02:40.7]} 10... f5 {[%clk 0:02:25.9]} 11.
Bf3 {[%clk 0:02:33.7]} 11... Qh4 {[%clk 0:01:57.6]} 12. g3 {[%clk 0:02:31]}
12... Qf6 {[%clk 0:01:47.4]} 13. Nxe4 {[%clk 0:02:30.1]} 13... fxe4 {[%clk
0:01:48.3]} 14. Bxe4 {[%clk 0:02:30.7]} 14... Bxe4 {[%clk 0:01:49.2]} 15. Qxe4
{[%clk 0:02:30.4]} 15... Nd7 {[%clk 0:01:50.1]} 16. Bd2 {[%clk 0:02:25.6]} 16...
Rfc8 {[%clk 0:01:29.1]} 17. Qc6 {[%clk 0:02:09.8]} 17... Nf8 {[%clk 0:01:25.3]}
18. a4 {[%clk 0:02:04.7]} 18... a5 {[%clk 0:01:24]} 19. f4 {[%clk 0:02:00.4]}
19... Qf5 {[%clk 0:01:18.3]} 20. e4 {[%clk 0:01:58.3]} 20... Qg4 {[%clk
0:01:17.6]} 21. Rf2 {[%clk 0:01:55.6]} 21... h5 {[%clk 0:01:16.1]} 22. e5 {[%clk
0:01:41.8]} 22... h4 {[%clk 0:01:05.7]} 23. Qf3 {[%clk 0:01:38.5]} 23... Qg6
{[%clk 0:00:45]} 24. f5 {[%clk 0:01:34.2]} 24... exf5 {[%clk 0:00:44.6]} 25.
Qxf5 {[%clk 0:01:35.1]} 25... hxg3 {[%clk 0:00:41.3]} 26. hxg3 {[%clk
0:01:31.6]} 26... dxe5 {[%clk 0:00:23.5]} 27. Qxe5 {[%clk 0:01:22.3]} 27... Re8
{[%clk 0:00:18.1]} 28. Qd5+ {[%clk 0:01:22.4]} 28... Ne6 {[%clk 0:00:14.4]} 29.
Kg2 {[%clk 0:01:23.3]} 29... c6 {[%clk 0:00:12.8]} 30. Qf5 {[%clk 0:01:22.1]}
30... Qxf5 {[%clk 0:00:10.2]} 31. Rxf5 {[%clk 0:01:23]} 31... g6 {[%clk
0:00:08.7]} 32. Re5 {[%clk 0:01:22.7]} 32... Nc7 {[%clk 0:00:06.9]} 33. Rae1
{[%clk 0:01:22.8]} 33... Kf7 {[%clk 0:00:06.8]} 34. Rxe8 {[%clk 0:01:10.4]}
34... Rxe8 {[%clk 0:00:07.7]} 35. Rxe8 {[%clk 0:01:09.1]} 35... Kxe8 {[%clk
0:00:08.6]} 36. Kf3 {[%clk 0:01:07.5]} 36... Kf7 {[%clk 0:00:05.4]} 37. Bf4
{[%clk 0:01:01.7]} 37... Ne6 {[%clk 0:00:04]} 38. Ke4 {[%clk 0:01:01.9]} 38...
Kf6 {[%clk 0:00:03.6]} 39. Be5+ {[%clk 0:01:01.8]} 39... Ke7 {[%clk 0:00:03.9]}
40. g4 {[%clk 0:01:00.6]} 40... Kd7 {[%clk 0:00:04]} 41. Bf6 {[%clk 0:01:00.2]}
41... Nc7 {[%clk 0:00:03.4]} 42. d5 {[%clk 0:01:00]} 42... cxd5+ {[%clk
0:00:03.5]} 43. cxd5 {[%clk 0:01:00.9]} 43... Ne8 {[%clk 0:00:04.1]} 44. Be5
{[%clk 0:01:00.4]} 44... Ke7 {[%clk 0:00:02.9]} 45. c4 {[%clk 0:01:00.4]} 45...
Kd7 {[%clk 0:00:03.3]} 46. Kf4 {[%clk 0:00:59.7]} 46... Ke7 {[%clk 0:00:03.7]}
47. Kg5 {[%clk 0:00:59.5]} 47... Kf7 {[%clk 0:00:04]} 48. Kf4 {[%clk 0:00:58.9]}
48... Ke7 {[%clk 0:00:04.1]} 49. Ke4 {[%clk 0:00:57.9]} 49... Kd7 {[%clk
0:00:04.4]} 50. Bd4 {[%clk 0:00:57.3]} 50... Nd6+ {[%clk 0:00:04.1]} 51. Kd3
{[%clk 0:00:57.3]} 51... Nc8 {[%clk 0:00:04.4]} 52. Ke4 {[%clk 0:00:56.8]} 52...
Nd6+ {[%clk 0:00:04.3]} 53. Kd3 {[%clk 0:00:56.7]} 53... Nc8 {[%clk 0:00:04.8]}
54. Be5 {[%clk 0:00:56.5]} 54... Ne7 {[%clk 0:00:04.4]} 55. Ke4 {[%clk
0:00:56.1]} 55... Nc8 {[%clk 0:00:04.8]} 56. Kf4 {[%clk 0:00:55.9]} 56... Ke7
{[%clk 0:00:05.3]} 57. Kg5 {[%clk 0:00:56.1]} 57... Kf7 {[%clk 0:00:05.9]} 58.
Bd4 {[%clk 0:00:55.4]} 58... Nd6 {[%clk 0:00:04.6]} 59. c5 {[%clk 0:00:55.1]}
59... bxc5 {[%clk 0:00:04.1]} 60. Bxc5 {[%clk 0:00:56]} 60... Ne4+ {[%clk
0:00:04.7]} 61. Kf4 {[%clk 0:00:55.7]} 61... Nxc5 {[%clk 0:00:05.6]} 62. Ke5
{[%clk 0:00:56.2]} 62... Ke7 {[%clk 0:00:06.1]} 63. d6+ {[%clk 0:00:56.3]} 63...
Kd7 {[%clk 0:00:04.3]} 64. Kf6 {[%clk 0:00:57.2]} 64... Ne4+ {[%clk 0:00:03.7]}
65. Kxg6 {[%clk 0:00:58.1]} 65... Kxd6 {[%clk 0:00:04.4]} 66. Kf5 {[%clk
0:00:58.2]} 66... Kd5 {[%clk 0:00:04.3]} 67. g5 {[%clk 0:00:58.6]} 67... Nd6+
{[%clk 0:00:03.2]} 68. Kf6 {[%clk 0:00:55.8]} 68... Kc5 {[%clk 0:00:02.3]} 69.
g6 {[%clk 0:00:56.2]} 69... Ne4+ {[%clk 0:00:02.5]} 70. Ke5 {[%clk 0:00:54.7]}
70... Ng5 {[%clk 0:00:01.8]} 71. Kf5 {[%clk 0:00:53.9]} 71... Nf3 {[%clk
0:00:02]} 72. g7 {[%clk 0:00:53.9]} 72... Nh4+ {[%clk 0:00:02.5]} 73. Kf6 {[%clk
0:00:53.9]} 73... Nf3 {[%clk 0:00:03.1]} 74. g8=Q {[%clk 0:00:53.9]} 74... Nd4
{[%clk 0:00:03.5]} 75. Qb8 {[%clk 0:00:53]} 75... Nc6 {[%clk 0:00:03.7]} 76. Qc7
{[%clk 0:00:52.7]} 76... Kd5 {[%clk 0:00:03.5]} 77. Kf5 {[%clk 0:00:52]} 77...
Nd4+ {[%clk 0:00:03.7]} 78. Kg4 {[%clk 0:00:51.1]} 78... Nc6 {[%clk 0:00:04.6]}
79. Kf3 {[%clk 0:00:50.1]} 79... Kc5 {[%clk 0:00:05]} 80. Ke3 {[%clk 0:00:48.9]}
80... Kd5 {[%clk 0:00:05.5]} 81. Kd3 {[%clk 0:00:47.8]} 81... Ne5+ {[%clk
0:00:05.7]} 82. Kc3 {[%clk 0:00:47.3]} 82... Nc6 {[%clk 0:00:06.3]} 83. Qc8
{[%clk 0:00:45.2]} 83... Kc5 {[%clk 0:00:05]} 84. Qf5+ {[%clk 0:00:45.2]} 84...
Kd6 {[%clk 0:00:04.2]} 85. Kc4 {[%clk 0:00:45]} 85... Kc7 {[%clk 0:00:01.1]} 86.
Kc5 {[%clk 0:00:43.5]} 86... Nd8 {[%clk 0:00:01.3]} 87. Qh7+ {[%clk 0:00:43.1]}
1-0

[Event "*** Titled Tuesday Blitz"]
[Site "Chess.com"]
[Date "2020.11.10"]
[Round "7"]
[White "davigator"]
[Black "orestn"]
[Result "0-1"]
[WhiteElo "2359"]
[BlackElo "2261"]
[TimeControl "180+1"]
[EndTime "11:23:43 PST"]
[Termination "orestn won by checkmate"]

1. e4 {[%clk 0:03:00.9]} 1... e5 {[%clk 0:02:59.2]} 2. Nf3 {[%clk 0:03:00.6]}
2... Nc6 {[%clk 0:02:59.1]} 3. Bb5 {[%clk 0:03:00.4]} 3... a6 {[%clk 0:02:58.8]}
4. Ba4 {[%clk 0:03:00.2]} 4... Nf6 {[%clk 0:02:58.9]} 5. O-O {[%clk 0:03:00.1]}
5... Be7 {[%clk 0:02:59.1]} 6. Re1 {[%clk 0:03:00.2]} 6... b5 {[%clk 0:02:58.9]}
7. Bb3 {[%clk 0:03:00.5]} 7... d6 {[%clk 0:02:59.8]} 8. c3 {[%clk 0:03:00.9]}
8... O-O {[%clk 0:03:00.1]} 9. h3 {[%clk 0:03:01.5]} 9... Na5 {[%clk 0:03:00.6]}
10. Bc2 {[%clk 0:03:01.7]} 10... c5 {[%clk 0:03:01.5]} 11. d4 {[%clk 0:03:02.2]}
11... Nd7 {[%clk 0:03:01.7]} 12. b3 {[%clk 0:03:00.1]} 12... cxd4 {[%clk
0:02:59.9]} 13. cxd4 {[%clk 0:02:59.7]} 13... Nc6 {[%clk 0:03:00]} 14. a3 {[%clk
0:02:53.9]} 14... Nxd4 {[%clk 0:02:53.6]} 15. Nxd4 {[%clk 0:02:53.1]} 15... exd4
{[%clk 0:02:54.1]} 16. Bb2 {[%clk 0:02:53.7]} 16... Bf6 {[%clk 0:02:53.6]} 17.
Bxd4 {[%clk 0:02:53.5]} 17... Bb7 {[%clk 0:02:49.1]} 18. Nc3 {[%clk 0:02:52.6]}
18... Rc8 {[%clk 0:02:47.3]} 19. Qd2 {[%clk 0:02:50.9]} 19... Qc7 {[%clk
0:02:40]} 20. Bxf6 {[%clk 0:02:50.8]} 20... Nxf6 {[%clk 0:02:39.8]} 21. Re3
{[%clk 0:02:51.7]} 21... Rfd8 {[%clk 0:02:27.8]} 22. Ra2 {[%clk 0:02:48.8]}
22... d5 {[%clk 0:02:23.9]} 23. exd5 {[%clk 0:02:48.8]} 23... Nxd5 {[%clk
0:02:23.4]} 24. Nxd5 {[%clk 0:02:49.3]} 24... Bxd5 {[%clk 0:02:22.2]} 25. Qe2
{[%clk 0:02:47.2]} 25... Be6 {[%clk 0:02:07.4]} 26. Rg3 {[%clk 0:02:18.8]} 26...
Qf4 {[%clk 0:02:01.1]} 27. Rd3 {[%clk 0:01:53.8]} 27... g6 {[%clk 0:01:58]} 28.
Ra1 {[%clk 0:01:47]} 28... Rxd3 {[%clk 0:01:46.7]} 29. Qxd3 {[%clk 0:01:47.2]}
29... Qg5 {[%clk 0:01:46.5]} 30. Ra2 {[%clk 0:01:22.8]} 30... Rd8 {[%clk
0:01:41.3]} 31. Qe3 {[%clk 0:01:19.3]} 31... Qxe3 {[%clk 0:01:32.9]} 32. fxe3
{[%clk 0:01:19.5]} 32... Rd2 {[%clk 0:01:33.3]} 33. Kh2 {[%clk 0:01:16]} 33...
a5 {[%clk 0:01:30.9]} 34. Bb1 {[%clk 0:01:14.9]} 34... Rd1 {[%clk 0:01:28]} 35.
Rb2 {[%clk 0:01:14.8]} 35... Re1 {[%clk 0:01:26.5]} 36. e4 {[%clk 0:01:14.1]}
36... b4 {[%clk 0:01:25.7]} 37. axb4 {[%clk 0:01:13.5]} 37... axb4 {[%clk
0:01:25.8]} 38. Kg3 {[%clk 0:01:03.2]} 38... Re3+ {[%clk 0:01:25.4]} 39. Kf4
{[%clk 0:01:03.5]} 39... Rxb3 {[%clk 0:01:25.7]} 40. Rxb3 {[%clk 0:01:03.9]}
40... Bxb3 {[%clk 0:01:25.8]} 41. Ke5 {[%clk 0:01:03.3]} 41... Kg7 {[%clk
0:01:25.1]} 42. Kd4 {[%clk 0:01:03.2]} 42... Kf6 {[%clk 0:01:25.2]} 43. Kc5
{[%clk 0:01:02.5]} 43... Ke5 {[%clk 0:01:24.2]} 44. Kxb4 {[%clk 0:01:03]} 44...
Bd1 {[%clk 0:01:23.2]} 45. Kc3 {[%clk 0:01:01.4]} 45... Be2 {[%clk 0:01:21.3]}
46. Ba2 {[%clk 0:00:52.6]} 46... f6 {[%clk 0:01:20.6]} 47. Bg8 {[%clk
0:00:51.9]} 47... h6 {[%clk 0:01:20.4]} 48. Bh7 {[%clk 0:00:52]} 48... g5 {[%clk
0:01:20.5]} 49. g3 {[%clk 0:00:49.1]} 49... Ba6 {[%clk 0:01:09.6]} 50. h4 {[%clk
0:00:44.2]} 50... Bb5 {[%clk 0:01:06.8]} 51. Bg6 {[%clk 0:00:41.3]} 51... Ba6
{[%clk 0:01:03.8]} 52. Bh7 {[%clk 0:00:40.6]} 52... gxh4 {[%clk 0:01:03.4]} 53.
gxh4 {[%clk 0:00:40.2]} 53... Bf1 {[%clk 0:00:59.9]} 54. Bg6 {[%clk 0:00:37.5]}
54... Kf4 {[%clk 0:00:57]} 55. Kd4 {[%clk 0:00:36.3]} 55... Kg4 {[%clk
0:00:55.9]} 56. h5 {[%clk 0:00:35.2]} 56... Kf4 {[%clk 0:00:54.8]} 57. Kd5
{[%clk 0:00:29.7]} 57... Bh3 {[%clk 0:00:52.7]} 58. Kd4 {[%clk 0:00:27.4]} 58...
Bc8 {[%clk 0:00:51.1]} 59. Kd5 {[%clk 0:00:26.6]} 59... Bb7+ {[%clk 0:00:50.8]}
60. Kd4 {[%clk 0:00:26.9]} 60... Ba8 {[%clk 0:00:50.4]} 61. Bh7 {[%clk
0:00:25.4]} 61... Bb7 {[%clk 0:00:48]} 62. Bg6 {[%clk 0:00:25.6]} 62... Bc6
{[%clk 0:00:47.9]} 63. Bh7 {[%clk 0:00:25.8]} 63... Be8 {[%clk 0:00:47.7]} 64.
Bg6 {[%clk 0:00:26]} 64... Bd7 {[%clk 0:00:46.8]} 65. Bh7 {[%clk 0:00:25.3]}
65... Be6 {[%clk 0:00:46.7]} 66. Bg6 {[%clk 0:00:25.4]} 66... Kg5 {[%clk
0:00:45.7]} 67. Ke3 {[%clk 0:00:24.2]} 67... Bg4 {[%clk 0:00:44.4]} 68. Kd4
{[%clk 0:00:24.4]} 68... Bxh5 {[%clk 0:00:44.2]} 69. Bh7 {[%clk 0:00:21]} 69...
Kf4 {[%clk 0:00:43.7]} 70. Kd5 {[%clk 0:00:18.3]} 70... Bg4 {[%clk 0:00:43]} 71.
Kd6 {[%clk 0:00:17.4]} 71... h5 {[%clk 0:00:42.1]} 72. Ke7 {[%clk 0:00:16.8]}
72... Ke5 {[%clk 0:00:42.1]} 73. Kf7 {[%clk 0:00:12.3]} 73... h4 {[%clk
0:00:41.4]} 74. Kg6 {[%clk 0:00:10.3]} 74... h3 {[%clk 0:00:40.5]} 75. Bg8
{[%clk 0:00:09.7]} 75... h2 {[%clk 0:00:39.7]} 76. Bd5 {[%clk 0:00:09.2]} 76...
h1=Q {[%clk 0:00:38.9]} 77. Kf7 {[%clk 0:00:09.6]} 77... Bf3 {[%clk 0:00:38.5]}
78. Bc6 {[%clk 0:00:08.6]} 78... Bxe4 {[%clk 0:00:38.2]} 79. Bxe4 {[%clk
0:00:08.3]} 79... Qxe4 {[%clk 0:00:37.3]} 80. Ke7 {[%clk 0:00:07.4]} 80... f5
{[%clk 0:00:38.2]} 81. Kf7 {[%clk 0:00:07.5]} 81... f4 {[%clk 0:00:39.1]} 82.
Kg7 {[%clk 0:00:07.4]} 82... f3 {[%clk 0:00:40]} 83. Kh8 {[%clk 0:00:08.1]}
83... f2 {[%clk 0:00:40.9]} 84. Kg7 {[%clk 0:00:09]} 84... f1=Q {[%clk
0:00:40.1]} 85. Kh8 {[%clk 0:00:09.9]} 85... Qeg2 {[%clk 0:00:39.2]} 86. Kh7
{[%clk 0:00:09.5]} 86... Kf6 {[%clk 0:00:37.5]} 87. Kh8 {[%clk 0:00:09.1]} 87...
Kf7 {[%clk 0:00:36.6]} 88. Kh7 {[%clk 0:00:08.7]} 88... Qfh1# {[%clk 0:00:34.8]}
0-1